Cogmind - Beta 12 @@@ ROGUE MODE // 2023.11.01 @ 21:14:07 Player: Figgis Result: Destroyed by 8R-AWN with 8R-AWN's Boregun Performance ------------- Evolutions (1) 500 Regions Visited (5) 1000 Robots Destroyed (45) 225 Value Destroyed (922) 922 Prototype IDs (28) 560 Alien Tech Used (0) 0 Bonus (-145) -145 TOTAL SCORE: 3062 Bonus ------- High Alert Combat Kills 17 Follower Combat Kills 7 Aligned with FarCom 300 Friendly Fire -469 Cogmind --------- Core Integrity 0/400 Matter 34/300 Energy 265/265 System Corruption 0% Temperature Cool (0) Movement Walking (190) Ox1 Location -9/Exiles Parts ------- > --- POWER (1) -------- Improved Ion Engine > --- PROPULSION (3) --- Improved Aluminum Leg Improved Aluminum Leg > --- UTILITY (3) ------ High-capacity Storage Unit Improved Targeting Computer > --- WEAPON (2) ------- Heavy Assault Rifle > --- INVENTORY (20) --- Improved Ion Engine Improved Aluminum Leg Superbattery (1500) Utility Shielding Light Armor Plating Light Armor Plating Shield Generator PSU Rigger Peak State ------------ > --- POWER ------------ Improved Ion Engine > --- PROPULSION ------- Aluminum Leg Aluminum Leg Improved Aluminum Leg > --- UTILITY ---------- High-capacity Storage Unit Improved Targeting Computer PSU Rigger > --- WEAPON ----------- Heavy Assault Rifle Heavy Assault Rifle > --- INVENTORY -------- Improved Ion Engine Improved Ion Engine Improved Ion Engine Improved Ion Engine Improved Ion Engine Improved Aluminum Leg Improved Aluminum Leg Improved Aluminum Leg Superbattery Utility Shielding Light Armor Plating Light Armor Plating Medium Armor Plating Shield Generator Heavy Assault Rifle Rocket Launcher [Rating: 24] Favorites ----------- Power Improved Ion Engine Engine Improved Ion Engine Propulsion Aluminum Leg Leg Aluminum Leg Utility Medium Armor Plating Device PSU Rigger Storage High-capacity Storage Unit Processor Improved Targeting Computer Protection Medium Armor Plating Weapon Heavy Assault Rifle Energy Gun Medium Laser Ballistic Gun Heavy Assault Rifle Launcher Rocket Launcher Build | -11 -10 -10 -9 -9 -9 ------- Run | Jun Mat Min Mat Min Exi Slots Evolved 2 | . . . 2 . . Power . | . . . . . . Propulsion 1 | . . . 1 . . Utility 1 | . . . 1 . . Weapon . | . . . . . . Parts Attached 35 | 3 13 2 8 1 8 Power 4 | 1 2 . . 1 . Engine 4 | 1 2 . . 1 . Core . | . . . . . . Reactor . | . . . . . . Propulsion 12 | 2 4 2 2 . 2 Treads . | . . . . . . Leg 12 | 2 4 2 2 . 2 Wheel . | . . . . . . Hover . | . . . . . . Flight . | . . . . . . Utility 10 | . 5 . 3 . 2 Device 1 | . . . . . 1 Storage 3 | . 2 . 1 . . Processor 1 | . . . 1 . . Hackware . | . . . . . . Protection 5 | . 3 . 1 . 1 Artifact . | . . . . . . Weapon 9 | . 2 . 3 . 4 Energy Gun 2 | . 1 . 1 . . Energy Cannon . | . . . . . . Ballistic Gun 5 | . 1 . 2 . 2 Ballistic Cannon . | . . . . . . Launcher 2 | . . . . . 2 Special Weapon . | . . . . . . Impact Weapon . | . . . . . . Slashing Weapon . | . . . . . . Piercing Weapon . | . . . . . . Special Melee Weapon . | . . . . . . Unidentified Prototypes . | . . . . . . Parts Lost 15 | . 3 . 4 1 7 Power 2 | . 1 . . 1 . Propulsion 4 | . . . 1 . 3 Utility 4 | . 2 . 1 . 1 Weapon 5 | . . . 2 . 3 Highest Loss Streak 7 | . 2 . 2 1 7 To Critical Strikes 5 | . . . . . 5 Average Slot Usage (%) 97 | . 94 100 98 99 98 Engine 12 | . 13 14 11 10 11 Leg 30 | . 28 28 32 33 32 Storage 12 | . 13 14 11 11 11 Processor 5 | . . . 10 11 11 Protection 10 | . 9 14 10 11 8 Energy Gun 8 | . 13 14 9 . . Ballistic Gun 15 | . 13 14 12 22 21 Naked Turns . | . . . . . . Heaviest Build 58 | 3 38 38 58 56 56 Greatest Support 33 | 3 20 20 33 33 33 Greatest Overweight (x) 2 | . 1 1 2 1 1 Average Overweight (x) . | . . 1 1 1 1 Largest Inventory Capacity 20 | 5 15 15 20 20 20 Average Capacity 15 | 5 10 15 18 20 20 Most Carried 20 | 5 15 15 19 18 20 Average Carried 13 | 3 9 15 15 17 16 Final Capacity 20 | 5 15 15 20 20 20 Final Carried 18 | 5 15 15 18 17 8 Class Distribution -------------------- 62% | Mutant 37% | Scavenger-Mutant Dominant Class ---------------- Mutant | -10/Materials Mutant | -10/Mines Scavenger-Mutant | -9/Materials Scavenger-Mutant | -9/Mines Scavenger-Mutant | -9/Exiles Resources | -11 -10 -10 -9 -9 -9 ----------- Run | Jun Mat Min Mat Min Exi Matter Collected 808 | 203 288 84 210 23 . Remotely . | . . . . . . Salvage Created 1407 | . 426 175 728 51 27 Parts 94 | . 35 7 48 4 . Haulers Intercepted 1 | . . . 1 . . Recyclers Shooed . | . . . . . . Parts Field Recycled . | . . . . . . Retrieved Matter . | . . . . . . Parts Self-Destructed . | . . . . . . Prevented . | . . . . . . Kills | -11 -10 -10 -9 -9 -9 ------- Run | Jun Mat Min Mat Min Exi Combat Hostiles Destroyed 42 | . 13 6 17 3 3 Guns 41 | . 13 6 17 3 2 AOE 1 | . . . . . 1 Classes Destroyed 8 | . 4 1 3 . . Worker 3 | . 1 . 2 . . Hauler 1 | . . . 1 . . Recycler 1 | . . . 1 . . Watcher 2 | . 2 . . . . Swarmer 20 | . 6 2 9 3 . Grunt 14 | . 7 3 4 . . Sentry 4 | . . . 4 . . Assembled 6 | . . 1 . . 5 Best Kill Streak 6 | . 5 2 6 3 3 Combat Bots Only 5 | . 5 2 5 3 3 Max Kills in Single Turn 2 | . 1 1 2 1 2 Gunslinging 1 | . . . 1 . . Exploded 1 | . . . . . 1 Melee . | . . . . . . Uniques/NPCs Destroyed . | . . . . . . Combat | -11 -10 -10 -9 -9 -9 -------- Run | Jun Mat Min Mat Min Exi Damage Taken 2776 | . 760 170 745 43 1058 Core 526 | . 99 22 114 . 291 Absorbed by Shields . | . . . . . . Core Remaining (%) 75 | 100 . 51 . . . Volleys Fired 149 | . 54 17 46 3 29 Largest 2 | . 2 2 2 2 2 Hottest 70 | . 70 70 70 46 56 Shots Fired 278 | . 105 34 89 6 44 Gun 270 | . 105 34 89 6 36 Cannon . | . . . . . . Launcher 8 | . . . . . 8 Special . | . . . . . . Kinetic 163 | . 54 17 50 6 36 Thermal 83 | . 51 17 15 . . Explosive 8 | . . . . . 8 Electromagnetic 24 | . . . 24 . . Robot Hit Streak 11 | . 6 4 8 4 11 Robot Miss Streak 4 | . 3 2 4 3 2 Penetration Max . | . . . . . . Secondary Targets 8 | . 1 2 4 . 1 Max Gunslinging Chain 1 | . 1 1 1 . 1 Shots Hit Robots 175 | . 62 20 54 4 35 Core Hits 77 | . 25 12 28 3 9 Critical Kills . | . . . . . . Critical Parts Destroyed . | . . . . . . Critical Strikes 8 | . 4 . 2 . 2 Burn 4 | . 4 . . . . Destroy 2 | . . . . . 2 Corrupt 2 | . . . 2 . . Melee Attacks . | . . . . . . Impact . | . . . . . . Slashing . | . . . . . . Piercing . | . . . . . . Sneak Attacks . | . . . . . . Combat Hostiles . | . . . . . . Follow-up Attacks . | . . . . . . Damage Inflicted 2874 | . 853 286 868 65 802 Guns 2507 | . 853 286 838 65 465 Cannons . | . . . . . . Explosions 367 | . . . 30 . 337 Melee . | . . . . . . Ramming . | . . . . . . Kinetic 1541 | . 393 134 484 65 465 Thermal 788 | . 460 152 176 . . Explosive 337 | . . . . . 337 Electromagnetic 208 | . . . 208 . . Impact . | . . . . . . Slashing . | . . . . . . Piercing . | . . . . . . Highest Corruption . | . . . . . . Average Corruption . | . . . . . . Corruption Purged . | . . . . . . Corruption Blocked . | . . . . . . Overload Shots . | . . . . . . Overflow Damage 14 | . . . . . 14 Projectiles . | . . . . . . Explosions 14 | . . . . . 14 Melee . | . . . . . . Knockbacks . | . . . . . . Impact . | . . . . . . Kinetic . | . . . . . . Secondary . | . . . . . . Self-Inflicted Damage 115 | . . . . . 115 Shots 3 | . . . . . 3 Rammed . | . . . . . . Targets Rammed 1 | . 1 . . . . Kicked 1 | . 1 . . . . Crushed . | . . . . . . Highest Temperature 292 | . 292 210 81 . . Average Temperature 75 | . 110 70 21 . . Received Heat Transfer 573 | . 345 48 174 6 . Effects 1 | . 1 . . . . Energy Bleed 1 | . 1 . . . . Siege Activations . | . . . . . . Robots Corrupted . | . . . . . . Combat Hostiles . | . . . . . . Parts Fried 1 | . . . 1 . . Impact Corruptions . | . . . . . . Robots Melted . | . . . . . . Combat Hostiles . | . . . . . . Parts Melted 4 | . 3 1 . . . Heat Transferred 2529 | . 1628 444 457 . . Parts Sabotaged . | . . . . . . Parts Stolen . | . . . . . . Parts Stripped . | . . . . . . Power Chain Reactions 1 | . . . 1 . . Missiles Intercepted . | . . . . . . Alert | -11 -10 -10 -9 -9 -9 ------- Run | Jun Mat Min Mat Min Exi Peak Influence 484 | . 186 124 484 205 . Initial 145 | . . . 48 145 . Average 121 | . 78 42 265 179 . Maximum Alert Level 2 | . . . 2 1 . Low Security (%) 73 | 100 100 100 30 13 . Level 1 25 | . . . 63 86 . Level 2 1 | . . . 5 . . Level 3 . | . . . . . . Level 4 . | . . . . . . Level 5 . | . . . . . . High Security . | . . . . . . Max Security . | . . . . . . Squads Dispatched 6 | . 2 . 4 . . Investigation 3 | . 1 . 2 . . Extermination . | . . . . . . Reinforcement 3 | . 1 . 2 . . Assault . | . . . . . . Garrison . | . . . . . . Intercept . | . . . . . . Searches Triggered . | . . . . . . Construction Impeded . | . . . . . . Haulers Reinforced . | . . . . . . Active Scanning Responses . | . . . . . . Cargo Convoy Interrupts . | . . . . . . Stealth | -11 -10 -10 -9 -9 -9 --------- Run | Jun Mat Min Mat Min Exi Distress Signals 4 | . . . 4 . . Communications Jammed . | . . . . . . Distress Signals . | . . . . . . Times Spotted 71 | . 18 12 31 4 6 Peak Tracking Total 6 | . 5 3 6 3 5 Tactical Retreats 1 | . . 1 . . . Traps | -11 -10 -10 -9 -9 -9 ------- Run | Jun Mat Min Mat Min Exi Traps Triggered 2 | . 1 . 1 . . Indirectly . | . . . . . . Trap Hack Attempts . | . . . . . . Triggered . | . . . . . . Disarmed . | . . . . . . Reprogrammed . | . . . . . . Reused . | . . . . . . Traps Extracted . | . . . . . . Installed . | . . . . . . Triggered . | . . . . . . Power Sources Rigged 5 | . . . . . 5 Exploded 5 | . . . . . 5 Machines | -11 -10 -10 -9 -9 -9 ---------- Run | Jun Mat Min Mat Min Exi Machines Disabled 5 | . . . 1 . 4 Max in Single Turn 2 | . . . 1 . 2 Machines Repaired . | . . . . . . Machines Sabotaged . | . . . . . . Overloaded Fab Kills . | . . . . . . Hacking | -11 -10 -10 -9 -9 -9 --------- Run | Jun Mat Min Mat Min Exi Machines Accessed 11 | . 6 1 3 . 1 Terminals 10 | . 6 1 3 . . Fabricators . | . . . . . . Repair Stations . | . . . . . . Recycling Units . | . . . . . . Scanalyzers . | . . . . . . Garrison Access . | . . . . . . Total Hacks 31 | . 15 1 14 . 1 Successful 21 | . 10 1 9 . 1 Failed 9 | . 4 . 5 . . Catastrophic . | . . . . . . Database Lockouts 1 | . 1 . . . . Manual 7 | . 2 . 4 . 1 Terminals 30 | . 15 1 14 . . Fabricators . | . . . . . . Repair Stations . | . . . . . . Recycling Units . | . . . . . . Scanalyzers . | . . . . . . Garrison Access . | . . . . . . Terminal Hacks 21 | . 10 1 9 . 1 Robot Analysis 2 | . 1 . 1 . . Prototype ID Bank 3 | . 2 . 1 . . Branch Access Points 1 | . 1 . . . . Alert Level 2 | . . . 2 . . Locate Traps 3 | . 3 . . . . Dispatch Records 1 | . . . 1 . . Maintenance Status 1 | . . . 1 . . Investigation Status 1 | . 1 . . . . Hauler Manifests 2 | . 2 . . . . Registered Prototypes 1 | . . . 1 . . Zone Layout 3 | . . 1 2 . . EX-Prototype ID Bank 1 | . . . . . 1 Fabricator Hacks . | . . . . . . Repair Station Hacks . | . . . . . . Recycling Unit Hacks . | . . . . . . Scanalyzer . | . . . . . . Garrison Access Hacks . | . . . . . . Unauthorized Hacks . | . . . . . . Terminals . | . . . . . . Fabricators . | . . . . . . Repair Stations . | . . . . . . Recycling Units . | . . . . . . Scanalyzers . | . . . . . . Garrison Access . | . . . . . . Data Cores Recovered . | . . . . . . Used . | . . . . . . Hacking Detections 4 | . 2 . 2 . . Full Trace Events 1 | . . . 1 . . Feedback Events . | . . . . . . Feedback Blocked . | . . . . . . Robot Schematics Acquired . | . . . . . . Robots Built . | . . . . . . Authchips . | . . . . . . Time . | . . . . . . Total Robot Build Rating . | . . . . . . Part Schematics Acquired . | . . . . . . Parts Built . | . . . . . . Authchips . | . . . . . . Time . | . . . . . . Total Part Build Rating . | . . . . . . Parts Repaired . | . . . . . . Time . | . . . . . . Parts Recycled . | . . . . . . Recycled Matter . | . . . . . . Retrieved Matter . | . . . . . . Retrieved Components . | . . . . . . Parts Scanalyzed . | . . . . . . Part Schematics Acquired . | . . . . . . Parts Damaged . | . . . . . . Bothacking | -11 -10 -10 -9 -9 -9 ------------ Run | Jun Mat Min Mat Min Exi Used RIF Installer . | . . . . . . Robots Hacked . | . . . . . . Non-combat . | . . . . . . Combat . | . . . . . . Robot Hacks Applied . | . . . . . . Relay Couplers Released . | . . . . . . Fabnet Peak Effective % . | . . . . . . Robots Rewired . | . . . . . . Allies Hacked . | . . . . . . Hacks Repelled . | . . . . . . Allies | -11 -10 -10 -9 -9 -9 -------- Run | Jun Mat Min Mat Min Exi Total Allies 1 | . . 1 . . . Largest Group 1 | . . 1 . . . Highest-Rated Group 31 | . . 31 . . . Highest-Rated Ally 31 | . . 31 . . . Total Orders . | . . . . . . Ally Attacks 6 | . . 6 . . . Total Damage 21 | . . 21 . . . Kills 1 | . . 1 . . . Allies Corrupted . | . . . . . . Allies Melted . | . . . . . . Intel | -11 -10 -10 -9 -9 -9 ------- Run | Jun Mat Min Mat Min Exi Robot Analysis Total 2 | . 1 . 1 . . Derelict Logs Recovered 3 | . . 2 . 1 . Drone Launches . | . . . . . . Drone Recoveries . | . . . . . . Exploration | -11 -10 -10 -9 -9 -9 ------------- Run | Jun Mat Min Mat Min Exi Turns Passed 3868 | 28 1305 758 632 456 689 Spaces Moved 1816 | 35 630 366 245 229 311 Core 54 | 35 19 . . . . Treads . | . . . . . . Legs 1762 | . 611 366 245 229 311 Wheels . | . . . . . . Hover . | . . . . . . Flight . | . . . . . . Fastest Speed 50 | 50 50 190 190 190 190 Average Speed 181 | 50 172 190 191 190 190 Slowest Speed 260 | 50 190 190 260 190 190 Overloaded Moves . | . . . . . . Propulsion Burnouts . | . . . . . . Robots Hopped . | . . . . . . Cave-ins Triggered . | . . . . . . Exploration Rate (%) 51 | 3 93 82 37 54 41 Regions Visited 5 Branch Regions 3 Pre-discovered Areas 1 | . . 1 . . . Known Exits Taken 2 | . 1 . 1 . . Unknown Exits Taken 3 | 1 . 1 . 1 . Scrap Searched . | . . . . . . Spaces Dug . | . . . . . . Terrain Destroyed 34 | . . . 3 . 31 Melee . | . . . . . . Projectile . | . . . . . . AOE 34 | . . . 3 . 31 Terrain Rammed . | . . . . . . Walls Destroyed . | . . . . . . Machines Disabled . | . . . . . . Actions | -11 -10 -10 -9 -9 -9 --------- Run | Jun Mat Min Mat Min Exi Total 2118 | 44 747 396 319 244 368 Wait 53 | . 20 10 11 12 . Move 1811 | 34 629 365 244 228 311 Hop . | . . . . . . Pick Up 43 | 7 22 . 9 . 5 Fast Attach 2 | 1 1 . . . . Attach 20 | 2 7 . 6 1 4 Detach . | . . . . . . Swap 13 | . 5 2 2 . 4 Drop 21 | . 8 2 1 . 10 Fire 149 | . 54 17 46 3 29 Melee . | . . . . . . Ram . | . . . . . . Kick 1 | . 1 . . . . Crush . | . . . . . . Escape Stasis . | . . . . . . Rewire . | . . . . . . Trap 5 | . . . . . 5 Miscellaneous . | . . . . . . Route ------- -11/Junkyard -10/Materials (discovered 4 exits: *Mat x3 / *Min) -10/Mines (discovered 2 exits: *Mat x2) -9/Materials -9/Mines (discovered 3 exits: [*Mat x2] / *Exi) -9/Exiles (discovered 1 exit: [*Min]) History --------- Turn | Location | Event 9 | -11/Junkyard | Discovered new exit (range 15) 29 | -11/Junkyard | Entered Materials 102 | -10/Materials | Central database locked down 247 | -10/Materials | Discovered new exit (range 12) 313 | -10/Materials | Build established: Mutant 578 | -10/Materials | Discovered new exit (range 9) 665 | -10/Materials | Discovered new exit (range 11) 711 | -10/Materials | Discovered new exit (range 7) 1173 | -10/Materials | Identified exit to Mines 1334 | -10/Materials | Entered Mines 1496 | -10/Mines | Discovered new exit (range 5) 1509 | -10/Mines | Escorted by a lone wolf Derelict 1529 | -10/Mines | Learned location of Storage (-9) 1756 | -10/Mines | Learned Materials interactive machine intel 1812 | -10/Mines | Excavation squad dispatched 1812 | -10/Mines | A large section of the Mines collapsed 1852 | -10/Mines | Received a Rocket Launcher from a helpful Derelict 2044 | -10/Mines | Learned 4 Materials zone layouts 2079 | -10/Mines | Discovered new exit (range 8) 2092 | -10/Mines | Entered Materials 2092 | -9/Materials | Evolved 2 slots: Propulsion x1, Utility x1 2093 | -9/Materials | Identified exit to Mines 2094 | -9/Materials | Loaded intel: 18 interactive machine locations 2622 | -9/Materials | Build established: Scavenger-Mutant 2724 | -9/Materials | Entered Mines 2769 | -9/Mines | Discovered new exit (range 5) 2876 | -9/Mines | Learned location of 1 exit from Materials 2935 | -9/Mines | Discovered new exit (range 11) 3149 | -9/Mines | Deemed a non-threat by the Exiles lab entrance 3172 | -9/Mines | Discovered new exit (range 5) 3180 | -9/Mines | Entered Exiles 3228 | -9/Exiles | Met 8R-AWN 3260 | -9/Exiles | Met EX-HEX 3312 | -9/Exiles | Met EX-BIN 3332 | -9/Exiles | Aligned with FarCom system 3334 | -9/Exiles | Given EX-Vault access code 3378 | -9/Exiles | Opened EX-Vault 3397 | -9/Exiles | Found AWS/Autocannon 3403 | -9/Exiles | Found Superbattery 3406 | -9/Exiles | Found PSU Rigger 3449 | -9/Exiles | Warned to stay clear of 0b10 Research branches 3574 | -9/Exiles | Discovered new exit (range 14) 3790 | -9/Exiles | Attacked by the Exiles 3824 | -9/Exiles | Core integrity fell below 50% 3853 | -9/Exiles | Core integrity fell below 20% 3869 | -9/Exiles | Destroyed by 8R-AWN with 8R-AWN's Boregun Last Messages --------------- 03832_ HV Slug penetrates Wall. 03832_ HV Slug penetrates Assembled Analyzer. 03832_ Penetrated by HV Slug. 03832_ Critical hit (Destroy). 03834_ The unstable cave ceiling collapses. 03837_ Penetrated by HV Slug. 03844_ Critical hit (Destroy). 03844_ Penetrated by HV Slug. 03847_ 8R-AWN suffers critical hit (Destroy). 03848_ Penetrated by HV Slug. 03848_ Med. Armor Plating destroyed. 03848_ Penetrated by HV Slug. 03848_ Critical hit (Destroy). 03848_ Rocket Launcher destroyed. 03852_ Penetrated by HV Slug. 03854_ The unstable cave ceiling collapses. 03855_ Destroyed Prototype Protection. 03856_ Penetrated by HV Slug. 03863_ The unstable cave ceiling collapses. 03865_ Penetrated by HV Slug. Map ----- +----------------------------------------------------+ | """#??????????????????????????????????? | | """#??????????????????????????????????? | | """#??????????????????????????????????? | | """#??????????????????????????????????? | | """#??????????????????????????????????? | | """"??????????????????????????????????? | | """#??????????????????????????????????? | | "X" """"??????????????????????????????????? | | """ #??????????????????????????????????? | | """""""""#??????????????????????????????????? | | ###########??????????????????????????????????? | | #????????????????????????????????????????????? | | #????????????????????????????????????????????? | | ##???????????????????????????????????????????? | | ##???####;######????????????????????????????? | | #####"""" """"##???????????????????????????? | | " """ """"##??????????????????????????? | | " " #??????????????????????????? | | """#??????????????????????????? | | a"#???????????#####??????????? | | " "##?????????##" #??????????? | | "###???????#" #??????????? | | "" " #??????##" ##?????????? | | #""" ###??## ###???????? | | #####""" # ######### | | ????##""" @ # #""""## | | ?????#"""" # | | ?????#"" g # | | ?????"""" ### | | ????? ###"""""#### | | ????? ########??#### | | ???? # #####????????????## | | ???? #####?????????????????? | | ???? ##?????????????????????? | | ?????" ""#??????????????????????? | | ??????? " " "" ##??????????????????????? | | ?????????"" """ #???????????????????????? | | ????????????????# # # ????????????????????????? | | ??????????????????# # #????????????????????????? | | ?????????????????????##??????????????????????????? | | ?????????????????????????????????????????????????? | | ?????????????????????????????????????????????????? | | ?????????????????????????????????????????????????? | | ?????????????????????????????????????????????????? | | ?????????????????????????????????????????????????? | | ?????????????????????????????????????????????????? | | ?????????????????????????????????????????????????? | | ?????????????????????????????????????????????????? | | ?????????????????????????????????????????????????? | | ?????????????????????????????????????????????????? | +----------------------------------------------------+ Best States ------------- Heat Dissipation 28 Energy Generation 12 Energy Capacity 265 Matter Stores 300 Matter Capacity 300 Sight Range 16 Terrain Scan Density 10 Armor Coverage 225 Evasion (%) 55 Targeting Accuracy 6 Item Schematics ----------------- None Robot Schematics ------------------ None Fabricated ------------ Nothing Alien Tech Used ----------------- None Achievements -------------- None Challenges ------------ None Game ------ Seed CatalystCompositeThruster Manual? 0 Play Time 00:18:22 Cumulative 95.6 hours Start 2023.11.01 @ 20:55:55 End 2023.11.01 @ 21:14:07 Sessions 1 Manual Loads 0 Difficulty Rogue Special Mode None Game No. 160 Rogue 157 Adventurer 3 Explorer 0 Win Type - Total 0 Types 0/0/0/0/0/0/0/0/0 Lore% 42 Gallery% 55 Achievement% 39 Wizard Run 0 Options --------- ASCII 0 Keyboard 0 Movement Mouse Keybinds 0 Fullscreen 2 Font 18/SmallcapsGlow Map View 76x50 Tactical HUD 1 Map Filters NONE Filters NONE Steam 1 RUN: 98b05ba9-08fe-411f-86ac-d5bb46b094a6